bitfinex-derivatives/quotes_ETHF0:USTF0_20241129
["timestamp","ask_amount","ask_price","bid_price","bid_amount"]
[1732889884121,0.27754,3601.8,3601.6,2.37244257]
[1732889884518,3.2078,3602.1,3601.2,2.09489257]
[1732889884713,0.69381,3602.0,3601.2,2.09489257]
[1732889885016,3.2078,3602.1,3601.2,2.48489257]
[1732889885715,0.27756,3601.6,3601.5,0.27756]
[1732889886029,0.27756,3601.6,3601.4,0.27756]
[1732889886323,0.4262,3601.5,3601.4,0.27756]
[1732889886920,0.4262,3601.5,3601.2,2.09489257]
[1732889887114,0.4314,3601.4,3601.2,2.49489257]
[1732889887320,0.70897,3601.4,3601.2,2.77247257]
[1732889887519,0.4314,3601.4,3601.2,2.49489257]
[1732889887729,0.27758,3601.3,3601.2,2.49489257]
[1732889888025,0.70898,3601.4,3601.2,2.77247257]
[1732889888219,0.4314,3601.4,3601.2,2.49489257]
[1732889888425,0.70897,3601.4,3601.2,2.77247257]
[1732889888621,0.27758,3601.3,3601.2,2.49489257]
[1732889889025,0.4314,3601.4,3601.3,0.27758]
[1732889889217,0.4314,3601.4,3601.3,0.56758]
[1732889890524,0.4262,3601.5,3601.4,0.27757]
[1732889890721,1.2872,3602.0,3601.9,0.27753]
[1732889891022,0.8428,3602.0,3601.9,2.37242257]
[1732889892125,1.12032,3602.0,3601.9,2.09489257]
[1732889892618,0.8428,3602.0,3601.9,2.09489257]
[1732889892823,0.8428,3602.0,3601.6,3.6134]
[1732889893023,0.8428,3602.0,3601.9,0.27753]
[1732889893731,0.4247,3602.0,3601.9,0.27753]
[1732889893944,0.4247,3602.0,3601.7,0.4111]
[1732889893945,0.4289,3602.3,3602.2,0.27751]
[1732889894226,0.7064,3602.3,3602.1,0.27751]
[1732889895028,0.72527,3602.7,3602.0,3.2078]
[1732889895324,0.8767,3602.7,3602.2,2.09489257]
[1732889895532,0.8767,3602.7,3602.6,0.27748]
[1732889897230,0.8767,3602.7,3602.6,2.37237257]
[1732889897231,0.4478,3602.7,3602.6,2.37237257]
[1732889897532,0.4294,3602.8,3602.7,0.27747]
[1732889898429,0.4294,3602.8,3602.3,0.8475]
[1732889898727,0.4294,3602.8,3602.7,0.27747]
[1732889898927,0.4294,3602.8,3602.3,2.00374]
[1732889898928,3.2078,3602.9,3602.4,0.4375]
[1732889899128,3.2078,3602.9,3602.8,0.27746]
[1732889900130,0.68303,3603.2,3602.9,0.27745]
[1732889900326,0.4056,3603.2,3602.6,3.2078]
[1732889900530,0.4056,3603.2,3603.1,0.27744]
[1732889901231,0.4278,3603.4,3603.3,0.27742]
[1732889901934,3.7068,3603.5,3603.1,0.8654]
[1732889902126,3.7068,3603.5,3603.4,0.27741]
[1732889902534,3.7068,3603.5,3603.1,0.8654]
[1732889902726,3.7068,3603.5,3603.3,0.27742]
[1732889903026,3.7068,3603.5,3603.4,0.27741]
[1732889903027,0.499,3603.5,3603.4,0.27741]
[1732889903223,0.499,3603.5,3603.4,3.48521]
[1732889903635,0.499,3603.9,3603.4,3.2078]
[1732889903836,0.499,3603.9,3603.8,5.58007257]
[1732889904231,0.499,3603.9,3603.8,44.45518]
[1732889904426,0.499,3604.5,3604.4,0.27733]
[1732889905328,0.499,3604.5,3604.4,3.48513]
[1732889907038,0.499,3604.5,3604.4,3.48514]
[1732889908333,0.4084,3605.1,3604.8,0.2773]
[1732889908531,0.4084,3605.1,3604.6,2.09489257]
[1732889908738,0.4084,3605.1,3604.9,0.27729]
[1732889909039,0.4084,3605.1,3604.7,0.4226]
[1732889909233,0.4084,3605.1,3605.0,0.27729]
[1732889909433,0.4084,3605.1,3604.6,2.09489257]
[1732889909635,0.4084,3605.1,3604.4,3.2078]
[1732889909636,0.27733,3604.6,3604.4,3.2078]
[1732889909940,3.2078,3605.0,3604.4,3.2078]
[1732889910237,0.27733,3604.5,3604.4,3.2078]
[1732889910736,3.90104,3605.0,3604.0,0.27748487]
[1732889910934,0.27735,3604.2,3603.9,3.48517]
[1732889911134,0.27736,3604.1,3603.9,3.2078]
[1732889911328,0.4172,3604.1,3604.0,0.27737]
[1732889911536,0.4193,3604.3,3603.9,3.2078]
[1732889911740,0.4193,3604.3,3604.1,0.27736]
[1732889912134,0.69665,3604.3,3604.0,0.27736]
[1732889912737,0.27735,3604.2,3603.8,2.37237744]
[1732889913043,0.27738,3603.9,3603.8,2.09489257]
[1732889913236,0.27736,3604.1,3603.8,2.37227257]
[1732889913540,0.4193,3604.3,3603.8,2.37227257]
[1732889913541,0.4193,3604.3,3603.8,2.09489257]
[1732889913745,0.4193,3604.3,3603.8,2.37227257]
[1732889913746,0.27737,3604.0,3603.8,2.37227257]
[1732889914135,0.27738,3603.9,3603.8,2.09489257]
[1732889914739,1.11268,3604.3,3603.9,0.27738]
[1732889914740,0.27737,3604.1,3603.9,0.27738]
[1732889914941,0.4193,3604.3,3603.8,2.09489257]
[1732889915241,0.27736,3604.1,3603.9,0.27738]
[1732889915438,0.4193,3604.3,3603.8,2.09489257]
[1732889915646,0.27736,3604.2,3604.0,0.27736]
[1732889915837,0.4193,3604.3,3604.1,0.27736]
[1732889916032,0.69665,3604.3,3603.8,2.09489257]
[1732889916239,0.4193,3604.3,3603.8,2.09489257]
[1732889916441,0.27737,3604.0,3603.9,3.2078]
[1732889916641,0.4193,3604.3,3603.9,44.28517]
[1732889916939,0.27736,3604.1,3603.9,44.28517]
[1732889917243,0.4193,3604.3,3603.9,44.0078]
[1732889917244,0.69665,3604.3,3603.9,44.0078]
[1732889917443,0.27735,3604.2,3604.0,0.27736]
[1732889917640,0.69665,3604.3,3603.9,44.0078]
[1732889917837,0.4193,3604.3,3604.2,0.27735]
[1732889918237,0.4193,3604.3,3604.0,0.27736]
[1732889918238,0.27736,3604.2,3604.0,0.27736]
[1732889918434,0.69665,3604.3,3604.1,0.27736]
[1732889918645,0.27735,3604.2,3604.0,0.27736]
[1732889919145,0.4249,3604.4,3603.9,44.0078]
[1732889919338,0.4172,3604.5,3604.2,2.09489257]
[1732889919533,0.27733,3604.6,3604.4,0.27734]
[1732889920139,0.27732,3604.6,3604.3,0.27734]
[1732889920444,0.27733,3604.5,3604.3,0.27734]
[1732889920640,0.4122,3604.7,3604.2,2.09489257]
[1732889920845,0.27734,3604.4,3604.2,2.09489257]
[1732889921044,0.27733,3604.5,3604.2,2.09489257]
[1732889921452,0.4122,3604.7,3604.2,2.09489257]
[1732889921639,0.4122,3604.7,3604.6,2.37221257]
[1732889922744,0.68951,3604.7,3604.6,2.09489257]
[1732889923052,0.4122,3604.7,3604.6,2.37221257]
[1732889923844,0.4122,3604.7,3604.6,2.09489257]
[1732889924248,0.68951,3604.7,3604.6,2.09489257]
[1732889924646,0.4122,3604.7,3604.6,2.09489257]
[1732889925143,0.4122,3604.7,3604.6,2.37221257]
[1732889925344,0.4122,3604.7,3604.6,3.42221257]
[1732889926050,0.68951,3604.7,3604.6,3.14489257]
[1732889926244,0.27733,3604.5,3604.3,3.48514]
[1732889926546,0.4122,3604.7,3604.3,3.2078]
[1732889926757,0.27734,3604.5,3604.3,3.2078]
[1732889926949,0.4122,3604.7,3604.3,3.2078]
[1732889927254,0.4122,3604.7,3604.6,0.27732]
[1732889929444,0.4198,3605.0,3604.9,0.2773]
[1732889929646,0.4198,3605.0,3604.9,2.37219257]
[1732889930250,0.8341,3605.3,3605.2,0.27728]
[1732889930648,3.2078,3605.8,3604.9,2.09489257]
[1732889930850,3.23125617,3606.5,3605.7,2.09489257]
[1732889931046,0.8478,3606.4,3606.3,2.37208257]
[1732889931249,0.4362,3606.4,3606.3,2.37208257]
[1732889932750,0.831,3607.1,3606.3,2.09489257]
[1732889933051,0.27715,3606.9,3606.7,2.09489257]
[1732889933356,0.27715,3606.8,3606.7,2.09489257]
[1732889934651,0.4424,3607.0,3606.7,2.09489257]
[1732889935149,0.27715,3606.8,3606.7,2.09489257]
[1732889937657,0.4424,3607.0,3606.3,2.09489257]
[1732889937949,3.2078,3606.8,3606.3,2.09489257]
[1732889938154,0.27718,3606.5,3606.4,0.27718]
[1732889938454,3.2078,3606.8,3606.3,2.09489257]
[1732889938652,3.48496,3606.8,3606.6,0.27716]
[1732889938949,3.48496,3606.8,3606.7,0.27716]
[1732889939155,3.48496,3606.8,3606.6,0.27717]
[1732889939351,3.48496,3606.8,3606.5,0.27717]
[1732889939352,0.27716,3606.7,3606.5,0.27717]
[1732889939655,0.27716,3606.7,3606.3,2.09489257]
[1732889939656,0.27717,3606.6,3606.4,0.27718]
[1732889939855,0.27717,3606.6,3606.3,2.09489257]
[1732889940056,0.27716,3606.7,3606.5,0.27718]
[1732889940358,3.2078,3606.8,3606.3,2.09489257]
[1732889940761,0.27718,3606.4,3606.3,2.09489257]
[1732889941054,0.27721,3606.0,3605.9,2.09489257]
[1732889941247,1.5915,3606.3,3605.9,2.09489257]
[1732889941448,1.5915,3606.3,3606.1,0.2772]
[1732889942152,0.2772,3606.2,3606.0,0.27721]
[1732889942458,1.5915,3606.3,3606.0,0.27721]
[1732889942759,1.3143,3606.3,3606.0,0.27721]
[1732889943052,1.3143,3606.3,3605.9,5.30269257]
[1732889943258,0.27721,3606.0,3605.9,6.30269257]
[1732889944146,0.27721,3606.1,3605.9,6.57991257]
[1732889944354,1.3143,3606.3,3605.9,6.30269257]
[1732889944562,0.27721,3606.0,3605.9,6.30269257]
[1732889944760,0.27721,3606.0,3605.9,6.57991257]
[1732889944959,1.3143,3606.3,3605.9,6.30269257]
[1732889945166,3.2078,3606.8,3606.6,0.27716]
[1732889945167,0.27716,3606.8,3606.6,0.27716]
[1732889945469,3.2078,3606.9,3606.5,2.09489257]
[1732889945755,0.27718,3606.4,3606.2,0.27719]
[1732889945960,0.69289,3606.8,3606.2,2.05719]
[1732889946164,0.69291,3606.7,3606.2,1.78]
[1732889946353,0.69291,3606.7,3606.0,0.4314]
[1732889946354,3.2078,3606.5,3606.0,0.27721]
[1732889946553,3.2078,3606.5,3605.5,3.2078]
[1732889946761,0.69304,3606.0,3605.1,42.89489257]
[1732889946955,0.27726,3605.4,3605.3,0.27726]
[1732889947458,0.27725,3605.6,3605.5,0.27725]
[1732889948160,3.2078,3606.1,3605.5,2.09489257]
[1732889948461,3.2078,3606.1,3605.8,0.27723]
[1732889948462,0.27723,3605.9,3605.8,0.27723]
[1732889948658,0.27723,3605.9,3605.5,2.09489257]
[1732889948659,0.27723,3605.8,3605.7,0.27723]
[1732889948962,0.27724,3605.7,3605.6,0.27724]
[1732889949159,3.2078,3606.1,3605.6,0.27724]
[1732889949362,0.27722,3605.9,3605.8,0.27723]
[1732889949562,0.27722,3605.9,3605.5,2.09489257]
[1732889949563,3.2078,3606.1,3605.5,2.09489257]
[1732889949860,0.27723,3605.8,3605.7,0.27723]
[1732889950563,0.27723,3605.8,3605.5,2.53549257]
[1732889950564,0.27723,3605.8,3605.6,0.27724]
[1732889951361,3.2078,3606.1,3605.1,46.10269257]
[1732889951558,1.2579,3606.4,3605.1,47.87597257]
[1732889951559,0.27727,3605.3,3605.1,47.87597257]
[1732889951964,0.4326,3605.6,3605.1,47.59869257]
[1732889952263,0.27727,3605.4,3605.3,0.27727]
[1732889952761,0.4326,3605.6,3605.1,46.10269257]
[1732889952967,0.4326,3605.6,3605.1,46.60269257]
[1732889953158,0.27728,3605.2,3605.1,0.5]
[1732889953363,0.27728,3605.2,3604.7,5.30269257]
[1732889953364,0.2773,3604.9,3604.7,2.37220257]
[1732889953766,0.2773,3604.9,3604.8,0.27731]
[1732889953967,0.4326,3605.6,3604.7,2.09489257]
[1732889954158,3.2078,3605.3,3604.9,0.27729]
[1732889954356,0.27728,3605.1,3605.0,0.27729]
[1732889954660,0.27728,3605.1,3604.9,0.27729]
[1732889954863,0.69316,3605.4,3604.7,2.09489257]
[1732889955074,0.27731,3604.8,3604.7,2.09489257]
[1732889955257,0.27731,3604.8,3604.7,42.89489257]
[1732889955562,0.27731,3604.8,3604.7,40.8]
[1732889955861,0.27731,3604.8,3604.3,2.37223257]
[1732889955862,0.27734,3604.4,3604.3,2.37223257]
[1732889956560,0.27733,3604.5,3604.4,0.27733]
[1732889957266,0.27733,3604.5,3604.3,42.89489257]
[1732889957464,0.8489,3604.7,3604.3,43.17223257]
[1732889957768,0.27734,3604.4,3604.3,43.17223257]
[1732889957966,0.8489,3604.7,3604.3,42.89489257]
[1732889958163,0.27734,3604.4,3604.3,43.17223257]
[1732889958369,0.8489,3604.7,3604.3,43.17223257]
[1732889958668,0.27733,3604.5,3604.3,43.17223257]
[1732889958967,0.27733,3604.6,3604.3,42.89489257]
[1732889959162,0.4294,3604.7,3604.6,0.27732]
[1732889959361,0.27732,3604.6,3604.4,0.69063]
[1732889959555,0.4294,3604.7,3604.4,0.4133]
[1732889959760,0.4294,3604.7,3604.4,0.69063]
[1732889959761,0.70672,3604.7,3604.4,0.69063]
[1732889960063,0.70672,3604.7,3604.4,0.4133]
[1732889960363,3.2078,3604.8,3604.4,0.4133]
[1732889960660,3.23125617,3605.9,3604.7,2.09489257]
[1732889960865,0.4045,3606.0,3605.5,2.09489257]
[1732889961268,0.4045,3606.0,3605.5,2.37214257]
[1732889961662,0.27723,3605.8,3605.5,2.37214257]
[1732889961865,0.4045,3606.0,3605.6,0.27724]
[1732889961866,0.27723,3605.9,3605.6,0.27724]
[1732889962066,0.4045,3606.0,3605.5,2.09489257]
[1732889962265,0.27725,3605.5,3605.4,0.4339]
[1732889962567,0.27724,3605.7,3605.4,41.4139]
[1732889962775,0.27724,3605.7,3605.5,0.27725]
[1732889962966,0.27724,3605.7,3605.4,41.2339]
[1732889963164,0.27724,3605.7,3605.4,41.68116]
[1732889963370,0.27724,3605.7,3605.5,0.27725]
[1732889963566,0.27724,3605.7,3605.4,41.51115]
[1732889963766,0.27724,3605.7,3605.4,41.68115]
[1732889964068,3.2078,3605.9,3605.4,40.8]
[1732889964273,0.27727,3605.3,3605.2,2.09489257]
[1732889964870,0.27726,3605.4,3605.2,2.37216257]
[1732889965173,0.4357,3605.6,3605.3,0.27727]
[1732889965367,3.2078,3605.9,3605.3,1.94]
[1732889965568,3.2078,3605.9,3605.6,2.37213257]
[1732889965569,0.27723,3605.8,3605.6,2.37213257]
[1732889966370,0.27722,3605.9,3605.7,0.27723]
[1732889966566,0.4045,3606.0,3605.6,2.09489257]
[1732889966766,0.27724,3605.8,3605.6,2.09489257]
[1732889966967,0.4045,3606.0,3605.6,2.09489257]
[1732889967370,0.27724,3605.7,3605.6,2.09489257]
[1732889968476,0.4045,3606.0,3605.6,2.09489257]
[1732889968876,0.4045,3606.0,3605.6,2.37213257]
[1732889969274,0.4045,3606.0,3605.6,2.09489257]
[1732889969470,0.4045,3606.0,3605.6,2.37213257]
[1732889969882,0.4045,3606.0,3605.7,0.27723]
[1732889970579,0.4045,3606.0,3605.6,2.09489257]
[1732889970777,0.4045,3606.0,3605.8,0.27723]
[1732889970981,0.4045,3606.0,3605.6,2.09489257]
[1732889971281,0.4045,3606.0,3605.8,0.27723]
[1732889971478,0.4045,3606.0,3605.6,2.09489257]
[1732889971479,0.4045,3606.0,3605.7,0.27723]
[1732889971688,0.4045,3606.0,3605.6,2.09489257]
[1732889973078,0.4045,3606.0,3605.3,3.2078]
[1732889973385,3.2078,3605.4,3604.3,2.37233125]
[1732889973679,3.23125617,3605.2,3604.3,2.37233125]
[1732889974181,3.23125617,3605.2,3604.7,2.09489257]
[1732889974380,3.23125617,3605.2,3604.3,2.37233125]
[1732889974576,3.23125617,3605.2,3604.3,4.97733125]
[1732889975182,3.23125617,3605.2,3604.4,0.965]
[1732889975374,3.23125617,3605.2,3604.4,1.155]
[1732889976483,3.23125617,3605.2,3604.1,3.2078]
[1732889976484,3.2078,3605.0,3604.1,3.2078]
[1732889976692,6.43905617,3605.0,3604.1,3.2078]
[1732889977090,3.23125617,3604.9,3604.1,3.2078]
[1732889977395,6.43905617,3605.0,3604.1,3.2078]
[1732889977784,3.2078,3604.6,3603.9,2.79059276]
[1732889977989,1.2879,3604.5,3603.9,3.19059276]
[1732889978886,1.2879,3604.5,3603.9,2.37229276]
[1732889979087,1.2879,3604.5,3603.9,2.09489257]
[1732889979286,1.2879,3604.5,3603.6,3.2078]
[1732889979488,1.2879,3604.5,3603.5,2.37233125]
[1732889979489,3.2078,3604.2,3603.5,0.27743868]
[1732889979693,3.2078,3604.2,3603.6,40.8]
[1732889979986,3.2078,3604.2,3603.6,41.44]
[1732889980384,3.2078,3604.2,3603.7,2.09489257]
[1732889981801,3.2078,3604.2,3603.3,0.4419]
[1732889982189,6.43905617,3604.2,3603.1,3.2078]
[1732889982389,3.2078,3604.2,3603.1,5.2278]
[1732889982797,3.2078,3604.2,3603.3,2.09489257]
[1732889983098,3.2078,3604.2,3603.3,4.62489257]
[1732889984501,2.09489257,3604.4,3603.5,3.2078]
[1732889984694,2.09489257,3604.4,3603.5,5.6878]
[1732889985000,3.2078,3603.9,3603.1,3.2078]
[1732889985298,3.2078,3603.9,3603.1,5.0778]
[1732889985491,0.4197,3603.8,3603.1,5.0778]
[1732889985890,0.4469,3603.7,3603.1,5.0778]
[1732889986192,0.883,3603.7,3603.1,5.0778]
[1732889987396,3.2078,3603.4,3602.7,0.27743868]
[1732889987698,3.2078,3603.4,3602.8,40.8]
[1732889987895,3.2078,3603.4,3602.8,40.97]
[1732889988297,3.2078,3603.4,3602.8,0.17]
[1732889988698,3.2078,3603.4,3602.8,40.97]
[1732889989200,3.2078,3603.4,3602.8,0.17]
[1732889990100,0.883,3603.7,3602.8,0.17]
[1732889990496,3.2078,3603.4,3602.8,0.17]
[1732889990702,0.883,3603.7,3602.8,0.17]
[1732889990907,0.883,3603.7,3602.8,2.26489257]
[1732889991801,0.883,3603.7,3602.8,0.17]
[1732889992500,0.883,3603.7,3603.0,3.2078]
[1732889994705,0.883,3603.7,3602.6,4.0953]
[1732889994905,0.883,3603.7,3602.6,7.1153]
[1732889996402,0.883,3603.7,3602.7,40.8]
[1732889996596,0.883,3603.7,3602.7,44.08]
[1732889997800,4.0908,3603.7,3602.7,44.08]
[1732889998799,0.4197,3603.8,3603.0,3.2078]
[1732889999006,0.4197,3603.8,3603.4,3.2078]
[1732889999207,0.4197,3603.8,3603.5,0.4104]
[1732889999504,0.4197,3603.8,3603.5,0.7604]
[1732890000209,3.2078,3604.3,3603.5,0.8291]
[1732890000412,3.629,3604.3,3603.5,0.8291]
[1732890001104,0.4212,3604.3,3603.8,3.2078]
[1732890001309,0.4212,3604.3,3603.5,0.8291]
[1732890001909,3.629,3604.3,3603.5,0.8291]
[1732890002208,3.639,3604.3,3603.5,0.4104]
[1732890003010,3.2078,3604.3,3603.5,0.4104]
[1732890003201,3.2078,3604.3,3603.6,0.4157]
[1732890011411,2.09489257,3604.2,3603.0,3.2078]
[1732890011610,2.09489257,3603.8,3603.0,0.21]
[1732890011809,1.2434,3603.7,3603.0,0.21]
[1732890012012,3.2078,3603.5,3603.0,0.21]
[1732890012316,3.2078,3603.5,3602.6,0.8214]
[1732890012514,3.2078,3603.5,3602.6,1.7414]
[1732890012714,2.09489257,3603.4,3602.6,1.7414]
[1732890012918,3.2078,3603.1,3602.6,0.92]
[1732890013120,6.72489257,3603.4,3602.0,0.4054]
[1732890013121,3.2078,3602.7,3602.0,0.4054]
[1732890013316,0.4059,3602.6,3602.0,0.6054]
[1732890013919,0.4059,3602.6,3601.7,3.2078]
[1732890014113,0.4059,3602.6,3601.8,0.4054]
[1732890014419,0.4059,3602.6,3601.8,2.3254]
[1732890014618,0.4059,3602.6,3602.2,3.2078]
[1732890015010,0.8468,3603.0,3602.2,3.7878]
[1732890015218,0.412,3602.9,3602.2,3.7878]
[1732890016113,0.412,3602.9,3602.3,0.4275]
[1732890016416,0.412,3602.9,3602.3,4.3575]
[1732890017120,0.412,3602.9,3602.4,40.8]
[1732890017322,0.412,3602.9,3602.6,3.2078]
[1732890017515,3.25028213,3603.5,3602.6,3.2078]
[1732890017716,1.2491,3603.5,3602.6,3.2078]
[1732890018816,1.2491,3603.5,3603.0,3.2078]
[1732890019220,1.2491,3603.5,3603.0,3.2178]
[1732890020222,1.2491,3603.5,3602.6,3.2078]
[1732890020424,1.2491,3603.5,3602.6,4.2778]
[1732890021122,4.49938213,3603.5,3602.6,4.2778]
[1732890021315,3.25028213,3603.4,3602.6,4.2778]
[1732890022223,4.49938213,3603.5,3602.6,4.2778]
[1732890022426,3.25028213,3603.4,3602.6,4.2778]
[1732890023120,1.2491,3603.5,3603.1,3.2078]
[1732890023429,3.25028213,3603.8,3603.1,3.2078]
[1732890023624,3.25028213,3603.8,3603.2,0.8611]
[1732890023930,4.11048213,3603.9,3603.2,0.8611]
[1732890024921,3.68268213,3604.1,3603.6,3.2078]
[1732890025123,0.4324,3604.1,3603.6,5.0978]
[1732890025630,6.45808213,3604.0,3603.6,1.89]
[1732890025929,3.25028213,3603.8,3603.2,0.8611]
[1732890026224,3.25028213,3603.8,3603.2,2.1211]
[1732890026528,6.45808213,3604.0,3603.2,2.1211]
[1732890026725,3.2078,3604.0,3603.2,2.1211]
[1732890027118,3.25028213,3604.3,3603.9,2.09489257]
[1732890027333,3.25028213,3604.5,3604.0,4.0241]
[1732890027524,3.66788213,3604.9,3604.4,3.2078]
[1732890027728,3.67598213,3605.1,3604.4,5.8578]
[1732890028220,0.4257,3605.1,3604.4,5.8578]
[1732890032736,3.25028213,3605.4,3604.9,2.09489257]
[1732890032929,1.282,3605.8,3605.2,3.2078]
[1732890033233,4.53228213,3605.8,3605.2,3.2078]
[1732890033433,1.282,3605.8,3605.2,3.2078]
[1732890034734,1.282,3605.8,3605.6,3.2078]
[1732890035721,1.282,3605.8,3605.2,3.2078]
[1732890036627,1.282,3605.8,3605.2,5.1078]
[1732890037527,0.4138,3605.8,3605.2,5.1078]
[1732890039034,0.8612,3606.3,3605.2,5.1078]
[1732890039035,0.8612,3606.3,3605.6,3.2078]
[1732890039332,0.8612,3606.3,3606.0,3.2078]
[1732890040031,0.4471,3606.6,3606.0,3.2078]
[1732890043739,0.4471,3606.6,3606.1,2.09489257]
[1732890044037,0.8685,3607.1,3606.4,3.2078]
[1732890044243,0.4263,3607.0,3606.5,0.4304]
[1732890045138,0.4263,3607.0,3606.5,0.87]
[1732890045744,0.4263,3607.0,3606.5,2.96489257]
[1732890046734,0.8685,3607.1,3606.5,2.52529257]
[1732890047247,0.8685,3607.1,3606.5,2.96489257]
[1732890048146,0.4122,3607.5,3606.5,2.96489257]
[1732890048342,0.8182,3607.5,3606.9,2.09489257]
[1732890049244,0.4174,3607.6,3607.2,3.2078]
[1732890049444,0.434,3607.9,3607.3,0.4445]
[1732890049648,0.434,3607.9,3607.3,2.97809257]
[1732890050945,0.406,3608.1,3607.3,2.97809257]
[1732890051143,0.406,3608.1,3607.3,3.33879257]
[1732890051445,0.406,3608.1,3607.6,5.30269257]
[1732890052647,0.883,3608.5,3607.6,5.30269257]
[1732890052949,3.2078,3609.9,3608.0,5.30269257]
[1732890053143,3.2078,3609.9,3608.7,3.2078]
[1732890053442,0.406,3609.8,3608.7,3.2078]
[1732890054452,0.406,3609.8,3608.9,2.09489257]
[1732890055151,0.406,3609.8,3609.0,40.8]
[1732890055743,0.406,3609.8,3608.9,2.09489257]
[1732890055946,0.406,3609.8,3608.9,2.28489257]
[1732890056149,0.406,3609.8,3609.2,3.2078]
[1732890056951,3.2078,3609.9,3609.3,2.09489257]
[1732890059245,0.8491,3610.0,3609.7,2.09489257]
[1732890059444,0.4413,3610.0,3609.7,2.09489257]
[1732890059646,0.4413,3610.0,3609.3,5.17239117]
[1732890059955,0.4413,3610.0,3609.3,2.09489257]
[1732890060454,0.4107,3609.9,3609.3,2.09489257]
[1732890060748,0.4413,3610.0,3609.7,2.09489257]
[1732890061546,0.443,3610.2,3609.7,2.09489257]
[1732890062551,0.443,3610.2,3609.8,0.4434]
[1732890062942,3.2078,3610.4,3609.8,0.4434]
[1732890063450,0.866,3610.7,3610.1,2.09489257]
[1732890063954,0.866,3610.7,3610.1,5.30269257]
[1732890064656,0.443,3610.7,3610.1,5.30269257]
[1732890064958,0.443,3610.7,3610.1,2.09489257]
[1732890065450,0.443,3610.7,3610.2,0.4444]
[1732890065658,0.443,3610.7,3610.1,5.30269257]
[1732890066255,3.2078,3610.5,3610.0,0.963]
[1732890066455,0.433,3610.4,3609.8,0.4434]
[1732890066659,0.433,3610.4,3609.7,2.09489257]
[1732890067649,0.433,3610.4,3609.9,0.27709351]
[1732890067859,0.433,3610.4,3610.1,2.09489257]
[1732890068048,0.443,3610.7,3610.1,2.09489257]
[1732890068249,0.4379,3610.8,3610.5,2.09489257]
[1732890068455,0.4467,3611.1,3610.5,2.09489257]
[1732890068858,0.4467,3611.1,3610.6,0.4181]
[1732890069355,0.4467,3611.1,3610.9,2.09489257]
[1732890069659,0.4039,3611.4,3610.9,2.09489257]
[1732890072455,0.4039,3611.4,3611.0,40.8]
[1732890074163,0.4039,3611.4,3610.9,2.09489257]
[1732890074763,0.01243194,3611.2,3610.9,2.09489257]
[1732890076259,0.4092,3612.0,3611.1,3.2078]
[1732890076463,0.4092,3612.0,3611.6,2.09489257]
[1732890077363,0.4092,3612.0,3611.6,2.52079257]
[1732890077570,3.6269,3612.7,3611.6,2.52079257]
[1732890077766,0.4092,3612.6,3612.0,2.09489257]
[1732890080073,0.4092,3612.6,3612.0,2.53479257]
[1732890080259,3.2078,3612.7,3612.0,2.53479257]
[1732890081175,0.8658,3613.0,3612.0,2.53479257]
[1732890081869,0.8658,3613.0,3612.0,43.33479257]
[1732890082871,0.8658,3613.0,3612.0,47.62479257]
[1732890083074,0.8658,3613.0,3612.0,49.71968514]
[1732890083375,0.8658,3613.0,3612.0,47.85741345]
[1732890083561,0.8658,3613.0,3612.0,49.95230602]
[1732890083767,0.8658,3613.0,3612.0,47.85741345]
[1732890085075,0.8658,3613.0,3612.0,49.95230602]
[1732890085271,0.9058,3613.0,3612.7,2.09489257]
[1732890085572,0.8658,3613.0,3612.7,2.09489257]
[1732890087867,0.9458,3613.0,3612.3,2.09489257]
[1732890089269,3.2078,3612.7,3612.3,2.09489257]
[1732890090274,3.2078,3612.7,3611.9,2.09489257]
[1732890090472,3.2078,3612.3,3611.9,2.09489257]
[1732890090673,1.2923,3612.2,3611.9,2.09489257]
[1732890093569,6.2923,3612.2,3611.2,2.09489257]
[1732890093872,3.2078,3611.7,3611.2,5.73489257]
[1732890094466,3.2078,3611.7,3611.3,0.27693236]
[1732890094673,3.2078,3611.7,3611.3,3.53]
[1732890096575,0.4206,3611.6,3611.3,3.53]
[1732890096881,0.8572,3611.5,3611.2,2.09489257]
[1732890097068,0.8572,3611.5,3611.2,1.68]
[1732890097379,3.2078,3611.3,3610.9,40.8]
[1732890097577,3.2078,3611.3,3610.9,1.71]
[1732890097770,3.2078,3611.3,3611.2,2.09489257]
[1732890097970,0.8572,3611.5,3611.2,2.09489257]
[1732890098769,0.96881,3611.4,3611.0,40.8]
[1732890098973,0.27682,3611.1,3611.0,44.38489257]
[1732890099480,1.54919,3611.5,3611.1,0.27682]
[1732890099481,0.27682,3611.2,3611.1,0.27682]
[1732890099777,1.13399,3611.5,3611.4,2.09489257]
[1732890100972,0.27682,3611.1,3611.0,42.89489257]
[1732890101275,0.27682,3611.1,3611.0,44.63489257]
[1732890101979,0.27682,3611.1,3611.0,3.83489257]
[1732890102681,0.27682,3611.1,3611.0,1.74]
[1732890102985,3.2078,3611.3,3610.6,2.09489257]
[1732890102986,0.27685,3610.7,3610.6,2.09489257]
[1732890103273,0.27685,3610.7,3610.6,4.17489257]
[1732890103473,3.2078,3611.3,3610.6,4.17489257]
[1732890103681,0.27685,3610.8,3610.6,4.17489257]
[1732890103876,3.89983,3611.3,3610.7,0.27685]
[1732890104071,1.5492,3611.5,3610.7,0.27685]
[1732890104072,0.27679,3611.5,3611.2,0.27681]
[1732890104277,3.2078,3611.7,3611.1,2.09489257]
[1732890104476,3.2078,3611.7,3611.5,2.09489257]
[1732890104773,3.48458,3611.7,3611.5,2.09489257]
[1732890104981,0.27678,3611.7,3611.5,2.09489257]
[1732890105176,0.27678,3611.6,3611.5,2.09489257]
[1732890106476,5.7807597,3612.1,3611.5,2.09489257]